[Event "Titled Tuesday Blitz April 18 Early 2023"]
[White "Antonova, Nadezhda"]
[Black "Santos Flores, Alberto"]
[WhiteFideId "14700182"]
[BlackFideId "3601234"]
[WhiteElo "1765"]
[BlackElo "2235"]
[Result "0-1"]
[Round "11"]
[TimeControl "180+2"]
[Date "2023.04.18"]
[WhiteClock "0:00:01"]
[BlackClock "0:00:40"]

1. Nf3 {[%clk 0:02:58]}  d5 {[%clk 0:02:59]} 2. b3 {[%clk 0:02:58]}  Bf5 {[%clk 0:02:58]} 3. Bb2 {[%clk 0:02:58]}  Nd7 {[%clk 0:02:57]} 4. g3 {[%clk 0:02:59]}  h6 {[%clk 0:02:57]} 5. Bg2 {[%clk 0:02:59]}  Ngf6 {[%clk 0:02:56]} 6. O-O {[%clk 0:03:00]}  e6 {[%clk 0:02:56]} 7. d3 {[%clk 0:03:00]}  Be7 {[%clk 0:02:55]} 8. Nbd2 {[%clk 0:03:01]}  O-O {[%clk 0:02:55]} 9. c4 {[%clk 0:03:01]}  c6 {[%clk 0:02:55]} 10. Qc2 {[%clk 0:03:01]}  Bh7 {[%clk 0:02:53]} 11. a3 {[%clk 0:02:58]}  a5 {[%clk 0:02:51]} 12. Ne5 {[%clk 0:02:53]}  Nxe5 {[%clk 0:02:50]} 13. Bxe5 {[%clk 0:02:54]}  Nd7 {[%clk 0:02:50]} 14. Bc3 {[%clk 0:02:54]}  Bf6 {[%clk 0:02:49]} 15. b4 {[%clk 0:02:54]}  Bxc3 {[%clk 0:02:45]} 16. Qxc3 {[%clk 0:02:55]}  Qf6 {[%clk 0:02:44]} 17. Qxf6 {[%clk 0:02:55]}  Nxf6 {[%clk 0:02:45]} 18. c5 {[%clk 0:02:51]}  Rfb8 {[%clk 0:02:37]} 19. Nb3 {[%clk 0:02:52]}  axb4 {[%clk 0:02:33]} 20. axb4 {[%clk 0:02:51]}  Nd7 {[%clk 0:02:31]} 21. Na5 {[%clk 0:02:50]}  Kf8 {[%clk 0:02:26]} 22. Ra3 {[%clk 0:02:49]}  Ra6 {[%clk 0:02:14]} 23. Rfa1 {[%clk 0:02:47]}  Rba8 {[%clk 0:02:14]} 24. Bf1 {[%clk 0:02:37]}  d4 {[%clk 0:02:10]} 25. Nc4 {[%clk 0:02:24]}  Rxa3 {[%clk 0:02:09]} 26. Rxa3 {[%clk 0:02:19]}  Rxa3 {[%clk 0:02:09]} 27. Nxa3 {[%clk 0:02:19]}  b6 {[%clk 0:01:52]} 28. b5 {[%clk 0:02:03]}  Nxc5 {[%clk 0:01:43]} 29. bxc6 {[%clk 0:02:02]}  Ke7 {[%clk 0:01:43]} 30. Nb5 {[%clk 0:01:57]}  e5 {[%clk 0:01:36]} 31. Bh3 {[%clk 0:01:47]}  Ne6 {[%clk 0:01:33]} 32. Bg2 {[%clk 0:01:31]}  Kd8 {[%clk 0:01:30]} 33. Kf1 {[%clk 0:01:09]}  Nc7 {[%clk 0:01:27]} 34. Nd6 {[%clk 0:01:05]}  f6 {[%clk 0:01:25]} 35. Ke1 {[%clk 0:00:55]}  b5 {[%clk 0:01:24]} 36. Kd2 {[%clk 0:00:54]}  Ke7 {[%clk 0:01:24]} 37. Nc8+ {[%clk 0:00:50]}  Kd8 {[%clk 0:01:19]} 38. Nb6 {[%clk 0:00:48]}  Bg8 {[%clk 0:01:18]} 39. e3 {[%clk 0:00:36]}  dxe3+ {[%clk 0:01:16]} 40. fxe3 {[%clk 0:00:34]}  Na6 {[%clk 0:01:16]} 41. d4 {[%clk 0:00:22]}  exd4 {[%clk 0:01:07]} 42. exd4 {[%clk 0:00:22]}  Kc7 {[%clk 0:01:08]} 43. Nd7 {[%clk 0:00:22]}  Nb4 {[%clk 0:01:03]} 44. Nc5 {[%clk 0:00:11]}  Nxc6 {[%clk 0:01:02]} 45. Kc3 {[%clk 0:00:10]}  b4+ {[%clk 0:00:58]} 46. Kd3 {[%clk 0:00:10]}  Ne7 {[%clk 0:00:50]} 47. Na4 {[%clk 0:00:08]}  Kd6 {[%clk 0:00:47]} 48. Nb2 {[%clk 0:00:08]}  Bd5 {[%clk 0:00:46]} 49. Bh3 {[%clk 0:00:07]}  g5 {[%clk 0:00:43]} 50. Bg4 {[%clk 0:00:06]}  f5 {[%clk 0:00:43]} 51. Bd1 {[%clk 0:00:06]}  f4 {[%clk 0:00:43]} 52. gxf4 {[%clk 0:00:06]}  gxf4 {[%clk 0:00:44]} 53. Kd2 {[%clk 0:00:04]}  Nf5 {[%clk 0:00:43]} 54. Nd3 {[%clk 0:00:04]}  Nxd4 {[%clk 0:00:42]} 55. Nxf4 {[%clk 0:00:04]}  Bf7 {[%clk 0:00:41]} 56. Kd3 {[%clk 0:00:03]}  Kc5 {[%clk 0:00:41]} 57. Ng2 {[%clk 0:00:01]}  Bc4+ {[%clk 0:00:40]} 58. Kd2 {[%clk 0:00:01]}  b3 {[%clk 0:00:40]} 0-1


[Site "https://www.chess.com"]

[Event "Titled Tuesday Blitz April 18 Early 2023"]
[White "Liu, Casper"]
[Black "Necula, Iulian"]
[WhiteFideId "1454153"]
[BlackFideId "1232380"]
[WhiteElo "2221"]
[BlackElo "1790"]
[Result "1-0"]
[Round "11"]
[TimeControl "180+2"]
[Date "2023.04.18"]
[WhiteClock "0:01:03"]
[BlackClock "0:00:16"]

1. e4 {[%clk 0:02:57]}  d6 {[%clk 0:03:00]} 2. d4 {[%clk 0:02:54]}  Nf6 {[%clk 0:03:01]} 3. Nc3 {[%clk 0:02:54]}  e5 {[%clk 0:03:01]} 4. dxe5 {[%clk 0:02:53]}  dxe5 {[%clk 0:03:02]} 5. Qxd8+ {[%clk 0:02:53]}  Kxd8 {[%clk 0:03:03]} 6. Bg5 {[%clk 0:02:53]}  h6 {[%clk 0:02:54]} 7. O-O-O+ {[%clk 0:02:52]}  Nd7 {[%clk 0:02:51]} 8. Bxf6+ {[%clk 0:02:44]}  gxf6 {[%clk 0:02:51]} 9. Nd5 {[%clk 0:02:44]}  Be7 {[%clk 0:02:51]} 10. g4 {[%clk 0:02:34]}  c6 {[%clk 0:02:50]} 11. Ne3 {[%clk 0:02:31]}  Kc7 {[%clk 0:02:47]} 12. Nf5 {[%clk 0:02:29]}  Bc5 {[%clk 0:02:36]} 13. f3 {[%clk 0:02:28]}  Nf8 {[%clk 0:02:22]} 14. Ne2 {[%clk 0:02:28]}  Bxf5 {[%clk 0:02:20]} 15. exf5 {[%clk 0:02:28]}  h5 {[%clk 0:02:11]} 16. Ng3 {[%clk 0:02:28]}  Be3+ {[%clk 0:02:05]} 17. Kb1 {[%clk 0:02:28]}  h4 {[%clk 0:01:36]} 18. Ne4 {[%clk 0:02:28]}  Nd7 {[%clk 0:01:35]} 19. Bc4 {[%clk 0:02:25]}  Raf8 {[%clk 0:01:33]} 20. h3 {[%clk 0:02:17]}  b5 {[%clk 0:01:32]} 21. Bb3 {[%clk 0:02:14]}  a5 {[%clk 0:01:32]} 22. a4 {[%clk 0:02:12]}  Bg5 {[%clk 0:01:09]} 23. Nd6 {[%clk 0:02:02]}  Rh7 {[%clk 0:01:08]} 24. axb5 {[%clk 0:02:02]}  cxb5 {[%clk 0:01:05]} 25. Nxb5+ {[%clk 0:02:02]}  Kc6 {[%clk 0:01:05]} 26. c4 {[%clk 0:01:46]}  Nc5 {[%clk 0:01:02]} 27. Rd6+ {[%clk 0:01:46]}  Kb7 {[%clk 0:01:01]} 28. Bc2 {[%clk 0:01:41]}  Rhh8 {[%clk 0:00:41]} 29. Rhd1 {[%clk 0:01:41]}  Rc8 {[%clk 0:00:24]} 30. Nc3 {[%clk 0:01:31]}  Kc7 {[%clk 0:00:20]} 31. Ne4 {[%clk 0:01:12]}  Nxe4 {[%clk 0:00:19]} 32. Rd7+ {[%clk 0:01:09]}  Kb6 {[%clk 0:00:17]} 33. Bxe4 {[%clk 0:01:08]}  Rxc4 {[%clk 0:00:17]} 34. R1d6+ {[%clk 0:01:04]}  Kc5 {[%clk 0:00:16]} 35. Rc6+ {[%clk 0:01:03]}  Kb4 {[%clk 0:00:16]} 36. Rb7+ {[%clk 0:01:03]} 1-0


[Site "https://www.chess.com"]

[Event "Titled Tuesday Blitz April 18 Early 2023"]
[White "Jiganchine, Roman"]
[Black "Mihajlovskij"]
[WhiteFideId "2603667"]
[WhiteElo "2239"]
[BlackElo "2073"]
[Result "1-0"]
[Round "11"]
[TimeControl "180+2"]
[Date "2023.04.18"]
[WhiteClock "0:00:06"]
[BlackClock "0:00:36"]

1. e4 {[%clk 0:02:59]}  d5 {[%clk 0:03:00]} 2. exd5 {[%clk 0:02:59]}  Qxd5 {[%clk 0:03:00]} 3. Nc3 {[%clk 0:02:59]}  Qe5+ {[%clk 0:03:00]} 4. Qe2 {[%clk 0:02:52]}  Qxe2+ {[%clk 0:02:59]} 5. Ngxe2 {[%clk 0:02:52]}  c6 {[%clk 0:03:00]} 6. Ng3 {[%clk 0:02:49]}  Nf6 {[%clk 0:02:59]} 7. Bc4 {[%clk 0:02:46]}  e6 {[%clk 0:03:00]} 8. f3 {[%clk 0:02:46]}  Bc5 {[%clk 0:02:59]} 9. a4 {[%clk 0:02:45]}  Nbd7 {[%clk 0:02:56]} 10. a5 {[%clk 0:02:44]}  O-O {[%clk 0:02:51]} 11. d3 {[%clk 0:02:44]}  Ne5 {[%clk 0:02:49]} 12. Bb3 {[%clk 0:02:43]}  Ng6 {[%clk 0:02:48]} 13. h4 {[%clk 0:02:38]}  Bd6 {[%clk 0:02:43]} 14. Nge2 {[%clk 0:02:37]}  Nh5 {[%clk 0:02:35]} 15. Kf2 {[%clk 0:02:27]}  Nhf4 {[%clk 0:02:31]} 16. h5 {[%clk 0:02:21]}  Nxe2 {[%clk 0:02:29]} 17. hxg6 {[%clk 0:02:07]}  Nxc1 {[%clk 0:02:26]} 18. gxh7+ {[%clk 0:02:01]}  Kh8 {[%clk 0:02:26]} 19. Raxc1 {[%clk 0:02:01]}  Bb4 {[%clk 0:02:23]} 20. Ra1 {[%clk 0:01:54]}  e5 {[%clk 0:02:17]} 21. Ne4 {[%clk 0:01:51]}  f6 {[%clk 0:02:13]} 22. c3 {[%clk 0:01:49]}  Be7 {[%clk 0:02:12]} 23. Bc2 {[%clk 0:01:38]}  Bf5 {[%clk 0:02:08]} 24. g4 {[%clk 0:01:29]}  Bg6 {[%clk 0:02:02]} 25. d4 {[%clk 0:01:19]}  exd4 {[%clk 0:01:49]} 26. cxd4 {[%clk 0:01:20]}  Rad8 {[%clk 0:01:49]} 27. Ke3 {[%clk 0:01:20]}  Rd5 {[%clk 0:01:42]} 28. Nc3 {[%clk 0:01:10]}  Bxc2 {[%clk 0:01:39]} 29. Nxd5 {[%clk 0:01:09]}  cxd5 {[%clk 0:01:40]} 30. Rac1 {[%clk 0:01:08]}  Bxh7 {[%clk 0:01:39]} 31. Rc7 {[%clk 0:01:03]}  Re8 {[%clk 0:01:36]} 32. Rxb7 {[%clk 0:00:58]}  Bb4+ {[%clk 0:01:32]} 33. Kf2 {[%clk 0:00:55]}  Bxa5 {[%clk 0:01:22]} 34. Rxa7 {[%clk 0:00:54]}  Bb6 {[%clk 0:01:22]} 35. Ra4 {[%clk 0:00:53]}  Rc8 {[%clk 0:01:21]} 36. Rb4 {[%clk 0:00:48]}  Ba5 {[%clk 0:01:16]} 37. Rb5 {[%clk 0:00:45]}  Rc2+ {[%clk 0:01:12]} 38. Kg3 {[%clk 0:00:44]}  Bc7+ {[%clk 0:01:12]} 39. f4 {[%clk 0:00:34]}  Kg8 {[%clk 0:01:11]} 40. Rc5 {[%clk 0:00:25]}  Rxc5 {[%clk 0:00:59]} 41. dxc5 {[%clk 0:00:26]}  Be4 {[%clk 0:00:58]} 42. Ra1 {[%clk 0:00:23]}  d4 {[%clk 0:00:52]} 43. Ra7 {[%clk 0:00:19]}  Bb8 {[%clk 0:00:45]} 44. Re7 {[%clk 0:00:18]}  Bc6 {[%clk 0:00:41]} 45. Re6 {[%clk 0:00:13]}  Bb5 {[%clk 0:00:42]} 46. Rb6 {[%clk 0:00:13]}  d3 {[%clk 0:00:36]} 47. Rxb8+ {[%clk 0:00:11]}  Kf7 {[%clk 0:00:36]} 48. Kf2 {[%clk 0:00:06]} 1-0


[Site "https://www.chess.com"]

[Event "Titled Tuesday Blitz April 18 Early 2023"]
[White "Ciuffoletti, Paolo"]
[Black "Sanchez, Robert"]
[WhiteFideId "807630"]
[BlackFideId "2034360"]
[WhiteElo "2143"]
[BlackElo "1968"]
[Result "1-0"]
[Round "11"]
[TimeControl "180+2"]
[Date "2023.04.18"]
[WhiteClock "0:00:37"]
[BlackClock "0:01:59"]

1. e4 {[%clk 0:03:00]}  d5 {[%clk 0:03:00]} 2. exd5 {[%clk 0:03:00]}  Qxd5 {[%clk 0:03:01]} 3. Nc3 {[%clk 0:03:00]}  Qe6+ {[%clk 0:03:01]} 4. Be2 {[%clk 0:02:59]}  Qg6 {[%clk 0:03:01]} 5. Nf3 {[%clk 0:02:58]}  Qxg2 {[%clk 0:03:00]} 6. Rg1 {[%clk 0:02:57]}  Qh3 {[%clk 0:03:00]} 7. d4 {[%clk 0:02:51]}  Nf6 {[%clk 0:03:00]} 8. Bf4 {[%clk 0:02:42]}  c6 {[%clk 0:02:56]} 9. Qd2 {[%clk 0:02:38]}  g6 {[%clk 0:02:56]} 10. Rg3 {[%clk 0:02:11]}  Qf5 {[%clk 0:02:54]} 11. Bd3 {[%clk 0:02:03]}  Qa5 {[%clk 0:02:52]} 12. O-O-O {[%clk 0:01:57]}  Bg7 {[%clk 0:02:41]} 13. Bh6 {[%clk 0:01:55]}  O-O {[%clk 0:02:35]} 14. Bxg7 {[%clk 0:01:54]}  Kxg7 {[%clk 0:02:36]} 15. Ne5 {[%clk 0:01:49]}  b5 {[%clk 0:02:32]} 16. Kb1 {[%clk 0:01:18]}  a6 {[%clk 0:02:25]} 17. h4 {[%clk 0:01:09]}  Nh5 {[%clk 0:02:23]} 18. Rg5 {[%clk 0:01:06]}  Nf6 {[%clk 0:02:04]} 19. h5 {[%clk 0:01:04]}  Kh8 {[%clk 0:02:02]} 20. hxg6 {[%clk 0:01:00]}  fxg6 {[%clk 0:02:03]} 21. Nxg6+ {[%clk 0:00:57]}  hxg6 {[%clk 0:02:03]} 22. Rxg6 {[%clk 0:00:56]}  Nh7 {[%clk 0:02:03]} 23. Rh1 {[%clk 0:00:51]}  Rf7 {[%clk 0:02:00]} 24. Qg5 {[%clk 0:00:41]}  Qd8 {[%clk 0:01:59]} 25. Rgh6 {[%clk 0:00:37]} 1-0


[Site "https://www.chess.com"]

[Event "Titled Tuesday Blitz April 18 Early 2023"]
[White "Tuleyeva-Aketayeva, Dana"]
[Black "Semenova, Alina"]
[WhiteFideId "13701932"]
[BlackFideId "24113875"]
[WhiteElo "2030"]
[BlackElo "1833"]
[Result "1-0"]
[Round "11"]
[TimeControl "180+2"]
[Date "2023.04.18"]
[WhiteClock "0:00:33"]
[BlackClock "0:01:33"]

1. d4 {[%clk 0:03:00]}  Nf6 {[%clk 0:02:54]} 2. Nf3 {[%clk 0:03:01]}  g6 {[%clk 0:02:54]} 3. Ng1 {[%clk 0:03:02]}  Bg7 {[%clk 0:02:55]} 4. Nh3 {[%clk 0:03:03]}  d6 {[%clk 0:02:54]} 5. g3 {[%clk 0:03:04]}  O-O {[%clk 0:02:54]} 6. Bg2 {[%clk 0:03:03]}  c6 {[%clk 0:02:54]} 7. O-O {[%clk 0:03:03]}  Bg4 {[%clk 0:02:55]} 8. Nf4 {[%clk 0:03:00]}  Nbd7 {[%clk 0:02:52]} 9. h3 {[%clk 0:03:00]}  Bf5 {[%clk 0:02:50]} 10. g4 {[%clk 0:02:54]}  Be6 {[%clk 0:02:45]} 11. Nxe6 {[%clk 0:02:54]}  fxe6 {[%clk 0:02:46]} 12. c4 {[%clk 0:02:48]}  e5 {[%clk 0:02:45]} 13. Be3 {[%clk 0:02:31]}  exd4 {[%clk 0:02:40]} 14. Bxd4 {[%clk 0:02:31]}  e5 {[%clk 0:02:41]} 15. Be3 {[%clk 0:02:30]}  Qc7 {[%clk 0:02:40]} 16. Nc3 {[%clk 0:02:29]}  Rae8 {[%clk 0:02:39]} 17. Qd2 {[%clk 0:01:58]}  Nc5 {[%clk 0:02:32]} 18. Bxc5 {[%clk 0:01:55]}  dxc5 {[%clk 0:02:31]} 19. Rad1 {[%clk 0:01:52]}  Rd8 {[%clk 0:02:31]} 20. Qe3 {[%clk 0:01:51]}  Rd4 {[%clk 0:02:20]} 21. b3 {[%clk 0:01:45]}  Rfd8 {[%clk 0:02:20]} 22. Qc1 {[%clk 0:01:41]}  h6 {[%clk 0:02:17]} 23. e3 {[%clk 0:01:39]}  R4d7 {[%clk 0:02:12]} 24. Rxd7 {[%clk 0:01:24]}  Rxd7 {[%clk 0:02:10]} 25. Rd1 {[%clk 0:01:24]}  Qd8 {[%clk 0:02:10]} 26. Rxd7 {[%clk 0:01:21]}  Qxd7 {[%clk 0:02:11]} 27. Qc2 {[%clk 0:01:20]}  Kh7 {[%clk 0:02:00]} 28. Ne4 {[%clk 0:01:17]}  Nxe4 {[%clk 0:01:52]} 29. Bxe4 {[%clk 0:01:15]}  Qd6 {[%clk 0:01:53]} 30. h4 {[%clk 0:01:06]}  Bf6 {[%clk 0:01:51]} 31. Bxg6+ {[%clk 0:01:03]}  Kg7 {[%clk 0:01:51]} 32. h5 {[%clk 0:00:58]}  Bg5 {[%clk 0:01:49]} 33. Qf5 {[%clk 0:00:53]}  Bf6 {[%clk 0:01:46]} 34. Be8 {[%clk 0:00:48]}  Bg5 {[%clk 0:01:43]} 35. Qf7+ {[%clk 0:00:46]}  Kh8 {[%clk 0:01:41]} 36. Bd7 {[%clk 0:00:39]}  Be7 {[%clk 0:01:37]} 37. Be6 {[%clk 0:00:34]}  Bg5 {[%clk 0:01:33]} 38. Qg8# {[%clk 0:00:33]} 1-0


[Site "https://www.chess.com"]

[Event "Titled Tuesday Blitz April 18 Early 2023"]
[White "Prado, Alexandra"]
[Black "Barria Santos, Jose Guilherme"]
[WhiteFideId "3301346"]
[BlackFideId "1939300"]
[WhiteElo "1759"]
[BlackElo "2266"]
[Result "0-1"]
[Round "11"]
[TimeControl "180+2"]
[Date "2023.04.18"]
[WhiteClock "0:00:02"]
[BlackClock "0:01:01"]

1. e4 {[%clk 0:02:52]}  c5 {[%clk 0:03:00]} 2. Nf3 {[%clk 0:02:41]}  d6 {[%clk 0:03:00]} 3. c3 {[%clk 0:02:41]}  Nf6 {[%clk 0:02:59]} 4. Be2 {[%clk 0:02:40]}  e6 {[%clk 0:02:59]} 5. O-O {[%clk 0:02:41]}  Be7 {[%clk 0:03:00]} 6. Re1 {[%clk 0:02:38]}  O-O {[%clk 0:02:59]} 7. Bf1 {[%clk 0:02:38]}  d5 {[%clk 0:02:59]} 8. exd5 {[%clk 0:02:26]}  exd5 {[%clk 0:02:59]} 9. d4 {[%clk 0:02:21]}  Nc6 {[%clk 0:02:58]} 10. Bg5 {[%clk 0:02:12]}  Bg4 {[%clk 0:02:55]} 11. Bxf6 {[%clk 0:01:59]}  Bxf6 {[%clk 0:02:55]} 12. dxc5 {[%clk 0:01:59]}  Rc8 {[%clk 0:02:49]} 13. h3 {[%clk 0:01:57]}  Bh5 {[%clk 0:02:45]} 14. g4 {[%clk 0:01:53]}  Bg6 {[%clk 0:02:45]} 15. Nd4 {[%clk 0:01:35]}  Ne5 {[%clk 0:02:41]} 16. g5 {[%clk 0:01:10]}  Bxg5 {[%clk 0:02:32]} 17. Rxe5 {[%clk 0:01:09]}  Rxc5 {[%clk 0:02:32]} 18. Qg4 {[%clk 0:00:38]}  Bf6 {[%clk 0:02:30]} 19. Re1 {[%clk 0:00:32]}  h5 {[%clk 0:02:22]} 20. Qg3 {[%clk 0:00:18]}  Bh4 {[%clk 0:02:17]} 21. Qf3 {[%clk 0:00:12]}  Qd7 {[%clk 0:02:11]} 22. Nd2 {[%clk 0:00:10]}  Rcc8 {[%clk 0:02:07]} 23. Bg2 {[%clk 0:00:10]}  f5 {[%clk 0:01:51]} 24. Re5 {[%clk 0:00:09]}  Rc5 {[%clk 0:01:46]} 25. Rxd5 {[%clk 0:00:09]}  Qe7 {[%clk 0:01:38]} 26. Kf1 {[%clk 0:00:05]}  f4 {[%clk 0:01:36]} 27. Rxc5 {[%clk 0:00:06]}  Qxc5 {[%clk 0:01:36]} 28. Re1 {[%clk 0:00:06]}  Kh7 {[%clk 0:01:34]} 29. Qd5 {[%clk 0:00:06]}  Bd3+ {[%clk 0:01:28]} 30. Kg1 {[%clk 0:00:06]}  Qc8 {[%clk 0:01:22]} 31. Be4+ {[%clk 0:00:06]}  Bxe4 {[%clk 0:01:20]} 32. Qxe4+ {[%clk 0:00:06]}  Kh8 {[%clk 0:01:18]} 33. Nf5 {[%clk 0:00:06]}  Bg5 {[%clk 0:01:15]} 34. Nd4 {[%clk 0:00:03]}  Qxh3 {[%clk 0:01:14]} 35. Qg2 {[%clk 0:00:03]}  Qh4 {[%clk 0:01:12]} 36. Re4 {[%clk 0:00:02]}  f3 {[%clk 0:01:05]} 37. N2xf3 {[%clk 0:00:03]}  Qxe4 {[%clk 0:01:04]} 38. Nxg5 {[%clk 0:00:02]}  Qe1+ {[%clk 0:01:01]} 39. Kh2 {[%clk 0:00:02]}  Rxf2 {[%clk 0:01:01]} 0-1


[Site "https://www.chess.com"]

[Event "Titled Tuesday Blitz April 18 Early 2023"]
[White "Mesa Cruz, Juan Carlos"]
[Black "rionelG"]
[WhiteFideId "6423400"]
[WhiteElo "2131"]
[BlackElo "2184"]
[Result "1-0"]
[Round "11"]
[TimeControl "180+2"]
[Date "2023.04.18"]
[WhiteClock "0:01:59"]
[BlackClock "0:00:58"]

1. e4 {[%clk 0:03:00]}  c5 {[%clk 0:02:00]} 2. Nf3 {[%clk 0:02:56]}  d6 {[%clk 0:02:00]} 3. d4 {[%clk 0:02:55]}  cxd4 {[%clk 0:02:01]} 4. Nxd4 {[%clk 0:02:56]}  Nf6 {[%clk 0:02:02]} 5. Nc3 {[%clk 0:02:56]}  a6 {[%clk 0:02:02]} 6. Bg5 {[%clk 0:02:56]}  Nbd7 {[%clk 0:02:02]} 7. Bc4 {[%clk 0:02:44]}  Qb6 {[%clk 0:01:55]} 8. Bb3 {[%clk 0:02:32]}  e6 {[%clk 0:01:51]} 9. Qd2 {[%clk 0:02:31]}  Be7 {[%clk 0:01:48]} 10. f4 {[%clk 0:02:31]}  Qc7 {[%clk 0:01:38]} 11. Bxe6 {[%clk 0:02:25]}  fxe6 {[%clk 0:01:36]} 12. Nxe6 {[%clk 0:02:26]}  Qa5 {[%clk 0:01:31]} 13. Nxg7+ {[%clk 0:02:18]}  Kf7 {[%clk 0:01:31]} 14. Nf5 {[%clk 0:02:18]}  Re8 {[%clk 0:01:24]} 15. O-O-O {[%clk 0:02:14]}  Nxe4 {[%clk 0:01:00]} 16. Nxe4 {[%clk 0:02:03]}  Qxd2+ {[%clk 0:00:58]} 17. Rxd2 {[%clk 0:01:59]} 1-0


[Site "https://www.chess.com"]

[Event "Titled Tuesday Blitz April 18 Early 2023"]
[White "Quispe Santacruz, Javier"]
[Black "Winkels, Marcel"]
[WhiteFideId "3800920"]
[BlackFideId "1003887"]
[WhiteElo "1875"]
[BlackElo "1900"]
[Result "0-1"]
[Round "11"]
[TimeControl "180+2"]
[Date "2023.04.18"]
[WhiteClock "0:00:36"]
[BlackClock "0:00:35"]

1. d4 {[%clk 0:02:53]}  Nf6 {[%clk 0:03:00]} 2. c4 {[%clk 0:02:52]}  g6 {[%clk 0:03:00]} 3. Nc3 {[%clk 0:02:52]}  d5 {[%clk 0:03:01]} 4. cxd5 {[%clk 0:02:52]}  Nxd5 {[%clk 0:03:01]} 5. e4 {[%clk 0:02:53]}  Nxc3 {[%clk 0:03:01]} 6. bxc3 {[%clk 0:02:54]}  Bg7 {[%clk 0:03:00]} 7. Nf3 {[%clk 0:02:54]}  c5 {[%clk 0:03:01]} 8. Be3 {[%clk 0:02:53]}  Qa5 {[%clk 0:02:58]} 9. Qd2 {[%clk 0:02:53]}  O-O {[%clk 0:02:51]} 10. Rc1 {[%clk 0:02:52]}  Nd7 {[%clk 0:02:50]} 11. Be2 {[%clk 0:02:51]}  Nf6 {[%clk 0:02:49]} 12. Bd3 {[%clk 0:02:46]}  Bg4 {[%clk 0:02:29]} 13. O-O {[%clk 0:02:45]}  Bxf3 {[%clk 0:02:27]} 14. gxf3 {[%clk 0:02:45]}  Rad8 {[%clk 0:02:21]} 15. d5 {[%clk 0:02:42]}  Rfe8 {[%clk 0:01:57]} 16. c4 {[%clk 0:02:42]}  Qxd2 {[%clk 0:01:49]} 17. Bxd2 {[%clk 0:02:42]}  Nd7 {[%clk 0:01:49]} 18. Rb1 {[%clk 0:02:35]}  b6 {[%clk 0:01:48]} 19. Bc2 {[%clk 0:02:35]}  Ne5 {[%clk 0:01:45]} 20. Bf4 {[%clk 0:01:49]}  Nxc4 {[%clk 0:01:42]} 21. Ba4 {[%clk 0:01:42]}  Rf8 {[%clk 0:01:37]} 22. Rfc1 {[%clk 0:01:40]}  Ne5 {[%clk 0:01:34]} 23. Bxe5 {[%clk 0:01:37]}  Bxe5 {[%clk 0:01:33]} 24. Bc6 {[%clk 0:01:36]}  Rd6 {[%clk 0:01:31]} 25. a4 {[%clk 0:01:36]}  e6 {[%clk 0:01:31]} 26. a5 {[%clk 0:01:35]}  exd5 {[%clk 0:01:26]} 27. Bxd5 {[%clk 0:01:36]}  Rb8 {[%clk 0:01:11]} 28. axb6 {[%clk 0:01:34]}  axb6 {[%clk 0:01:10]} 29. Rb5 {[%clk 0:01:30]}  Bd4 {[%clk 0:01:03]} 30. Rc2 {[%clk 0:01:23]}  Kg7 {[%clk 0:00:59]} 31. Ra2 {[%clk 0:01:22]}  Rd7 {[%clk 0:00:57]} 32. Kg2 {[%clk 0:01:18]}  Rc7 {[%clk 0:00:56]} 33. Bc4 {[%clk 0:01:17]}  Rd7 {[%clk 0:00:48]} 34. Ra6 {[%clk 0:01:15]}  Rd6 {[%clk 0:00:46]} 35. Ra7 {[%clk 0:01:14]}  Rf6 {[%clk 0:00:45]} 36. Bd5 {[%clk 0:01:11]}  Rc8 {[%clk 0:00:43]} 37. Rb7 {[%clk 0:01:08]}  c4 {[%clk 0:00:42]} 38. Rb1 {[%clk 0:00:55]}  c3 {[%clk 0:00:42]} 39. Rc1 {[%clk 0:00:55]}  c2 {[%clk 0:00:41]} 40. Bb3 {[%clk 0:00:43]}  Rfc6 {[%clk 0:00:38]} 41. Rxf7+ {[%clk 0:00:35]}  Kh6 {[%clk 0:00:37]} 42. Rd7 {[%clk 0:00:36]}  Bb2 {[%clk 0:00:35]} 0-1


[Site "https://www.chess.com"]